bitfinex/quotes_ETHUSD_20260304
["timestamp","ask_amount","ask_price","bid_price","bid_amount"]
[1772621179227,2.48930176,2072.0,2070.8,1.20726289]
[1772621179469,2.48930176,2072.0,2071.1,1.213]
[1772621180502,3.6959237,2071.9,2070.8,1.20726289]
[1772621180695,2.48930176,2071.8,2070.9,1.215]
[1772621181154,1.20662194,2071.9,2070.9,3.57383648]
[1772621181310,1.20638903,2072.3,2071.0,2.35883648]
[1772621181627,1.20638903,2072.3,2071.2,2.35883648]
[1772621181954,1.20638903,2072.3,2071.3,1.217]
[1772621182303,2.4923421,2072.2,2071.4,1.217]
[1772621182507,1.2063764,2072.4,2071.5,1.20685493]
[1772621182705,1.2063764,2072.4,2071.5,3.54909169]
[1772621183106,3.6987185,2072.4,2071.6,1.218]
[1772621183813,2.4923421,2072.3,2071.7,1.219]
[1772621184225,1.20631332,2072.5,2071.8,1.219]
[1772621184442,3.69865542,2072.5,2071.8,1.219]
[1772621184619,2.4923421,2072.4,2071.8,1.219]
[1772621184819,2.4923421,2072.4,2071.8,2.42566526]
[1772621185412,2.4923421,2072.4,2071.9,1.22]
[1772621186038,2.4923421,2072.4,2071.4,4.82765026]
[1772621186039,2.4923421,2072.4,2071.4,1.22]
[1772621187112,3.69873113,2072.3,2071.5,1.20685493]
[1772621187309,3.69873113,2072.3,2071.6,1.221]
[1772621187310,2.4923421,2072.2,2071.6,1.221]
[1772621187738,2.4923421,2072.2,2071.7,1.222]
[1772621187943,2.4923421,2072.2,2071.2,1.20702974]
[1772621188145,2.4923421,2072.2,2071.3,1.222]
[1772621188522,2.4923421,2072.2,2071.2,1.20702974]
[1772621188726,2.4923421,2072.2,2071.4,1.222]
[1772621189043,2.4923421,2072.2,2071.5,1.222]
[1772621189243,3.69884757,2072.1,2071.5,1.222]
[1772621189610,2.4923421,2072.0,2071.6,1.222]
[1772621190144,2.4923421,2072.0,2071.3,1.20796777]
[1772621190348,2.4923421,2072.0,2071.7,1.223]
[1772621191245,1.20662194,2071.9,2071.3,0.001]
[1772621191414,1.20662194,2071.9,2071.8,1.223]
[1772621191820,3.69895213,2072.0,2071.3,0.001]
[1772621192039,3.69895213,2072.0,2071.8,1.223]
[1772621192322,3.69895213,2072.0,2071.9,1.223]
[1772621192918,3.69895213,2072.0,2071.9,1.11439879]
[1772621193214,2.4923421,2071.9,2071.6,1.224]
[1772621193546,1.20668018,2071.8,2071.6,1.224]
[1772621194043,1.20668018,2071.8,2071.3,0.001]
[1772621194246,1.20668018,2071.8,2071.4,1.224]
[1772621195344,1.20668018,2071.8,2071.3,0.001]
[1772621195520,3.69902228,2071.8,2071.4,1.224]
[1772621195953,1.20843795,2072.3,2071.5,2.34223676]
[1772621196444,1.20843795,2072.3,2071.6,3.56623676]
[1772621197039,0.002,2072.3,2071.7,2.79008742]
[1772621197245,0.002,2072.3,2071.8,2.79008742]
[1772621197438,0.002,2072.3,2071.9,0.44785066]
[1772621197840,0.002,2072.3,2071.9,3.99667501]
[1772621198035,0.002,2072.3,2072.0,1.67285066]
[1772621198359,2.84960202,2072.6,2072.1,0.44837657]
[1772621198562,2.84960202,2072.6,2072.2,0.44837657]
[1772621198861,2.84960202,2072.6,2072.0,3.56723676]
[1772621199056,2.96355319,2072.8,2072.1,0.44903921]
[1772621199235,2.85065662,2072.7,2072.2,0.44903921]
[1772621199433,2.85065662,2072.6,2072.3,0.44903921]
[1772621199638,2.96352085,2072.8,2072.4,0.44903921]
[1772621199846,9.59677909,2073.0,2072.2,3.54864286]
[1772621199847,2.85733216,2072.7,2072.5,0.44803921]
[1772621200158,1.20603984,2072.9,2072.6,1.225]
[1772621200448,2.85741816,2072.8,2072.7,1.225]
[1772621201235,2.85741816,2072.8,2072.7,1.226]
[1772621201933,4.06351619,2072.8,2072.7,1.226]
[1772621202255,4.06351619,2072.8,2072.5,1.226]
[1772621202444,2.85741816,2072.7,2072.2,3.54864795]
[1772621202644,1.20609803,2072.8,2072.3,1.226]
[1772621202949,2.85768735,2072.7,2072.3,1.226]
[1772621203255,7.31642147,2073.0,2072.3,1.226]
[1772621203256,1.20600623,2073.0,2072.4,2.34223676]
[1772621203555,4.82349128,2073.2,2072.5,1.226]
[1772621203753,5.97866071,2073.3,2072.5,3.56823676]
[1772621203754,2.86074182,2073.1,2072.5,3.56823676]
[1772621203955,3.69819349,2073.3,2072.5,3.56823676]
[1772621203956,1.20585139,2073.3,2072.7,1.20615622]
[1772621204161,2.8599893,2073.2,2072.7,1.20615622]
[1772621204359,1.20585139,2073.3,2072.7,3.54839298]
[1772621204540,2.85833107,2073.2,2072.7,2.34223676]
[1772621204733,1.20579128,2073.4,2072.8,1.226]
[1772621204931,2.85856827,2073.3,2072.8,1.226]
[1772621205151,0.002,2073.1,2072.8,1.226]
[1772621205348,0.002,2073.1,2072.7,2.34223676]
[1772621205548,0.002,2073.1,2072.8,1.226]
[1772621205858,0.002,2073.1,2072.9,1.226]
[1772621206435,0.002,2073.1,2072.6,1.20619438]
[1772621206657,0.002,2073.1,2072.7,1.226]
[1772621207263,0.002,2073.1,2072.4,3.548524]
[1772621207433,0.002,2073.1,2072.7,1.226]
[1772621208072,0.002,2073.1,2072.4,3.548524]
[1772621208268,0.002,2073.1,2072.7,1.226]
[1772621209758,2.60855358,2073.1,2072.5,1.20622694]
[1772621209966,2.60855358,2073.1,2072.6,1.226]
[1772621210462,1.20796763,2073.1,2072.6,1.226]
[1772621211868,1.20796763,2073.1,2072.7,0.44909344]
[1772621212045,1.20796763,2073.1,2072.6,2.43221372]
[1772621212745,0.002,2073.1,2072.6,1.226]
[1772621214264,2.60855358,2073.1,2072.7,1.227]
[1772621215348,1.20598166,2073.0,2072.7,1.227]
[1772621215771,3.81452074,2073.1,2072.7,1.227]
[1772621218270,3.81452074,2073.1,2072.8,0.001]
[1772621218474,2.60655358,2073.5,2072.9,2.45775289]
[1772621218637,2.60655358,2073.4,2072.9,1.227]
[1772621219260,2.60855358,2073.4,2072.9,1.227]
[1772621220070,2.60655358,2073.6,2073.0,2.45775289]
[1772621220369,3.81023125,2073.6,2073.0,4.89173252]
[1772621220574,2.60655358,2073.4,2072.8,0.001]
[1772621220740,2.48361134,2073.5,2072.5,0.001]
[1772621220741,2.60655358,2073.2,2072.5,0.001]
[1772621220941,2.60655358,2073.0,2072.5,0.001]
[1772621222244,3.81258389,2073.0,2072.5,1.20727058]
[1772621222447,1.2059635,2073.1,2072.5,3.66502347]
[1772621223475,3.8124628,2073.2,2072.6,2.45775289]
[1772621224511,2.48361134,2073.5,2072.6,3.66391475]
[1772621224680,2.86519513,2073.4,2072.7,2.45775289]
[1772621224848,1.20571965,2073.5,2072.9,2.45775289]
[1772621226147,3.8122302,2073.6,2072.9,2.45775289]
[1772621226343,1.20574901,2073.4,2072.9,3.66376295]
[1772621226573,1.20574901,2073.4,2073.0,1.229]
[1772621226870,1.2057069,2073.5,2073.0,1.229]
[1772621227458,1.20566701,2073.6,2073.0,1.229]
[1772621227663,2.86424243,2073.5,2073.0,1.229]
[1772621228288,1.20566701,2073.6,2073.0,3.68675289]
[1772621228466,4.8224129,2073.7,2073.1,3.66367638]
[1772621228667,2.86556318,2073.6,2073.0,4.89273397]
[1772621229073,2.86556318,2073.6,2073.0,3.66373397]
[1772621229251,2.86556318,2073.6,2073.1,1.229]
[1772621229659,2.86556318,2073.6,2073.1,3.68675289]
[1772621229859,1.20553973,2073.8,2073.2,2.45775289]
[1772621230696,3.81404653,2073.9,2073.3,1.20580716]
[1772621230864,3.81404653,2073.9,2073.3,3.66356005]
[1772621231387,1.20540295,2074.0,2073.4,2.45775289]
[1772621231859,1.20540295,2074.0,2073.5,1.23]
[1772621232569,1.20540295,2074.0,2073.5,2.43567363]
[1772621232790,1.20540295,2074.0,2073.5,1.23]
[1772621232958,3.81195653,2074.0,2073.4,3.66346299]
[1772621233159,3.81195653,2074.0,2073.4,2.45775289]
[1772621233355,0.002,2073.6,2073.5,1.23]
[1772621233583,1.20540295,2074.0,2073.5,1.23]
[1772621233783,3.81394267,2074.1,2073.5,1.23]
[1772621234160,2.60655358,2074.0,2073.6,1.23]
[1772621234361,0.002,2073.9,2073.6,1.23]
[1772621234586,2.60655358,2074.0,2073.6,2.43562582]
[1772621234790,3.81197387,2074.0,2073.6,1.23]
[1772621235089,1.20542029,2074.0,2073.6,1.23]
[1772621235471,3.81392691,2074.1,2073.6,1.23]
[1772621235993,1.20737333,2074.1,2073.4,3.6635019]
[1772621236162,2.60655358,2074.0,2073.2,3.66356822]
[1772621236368,2.60655358,2074.0,2073.3,1.231]
[1772621237091,3.81201189,2073.9,2073.3,2.43675209]
[1772621238984,3.81201189,2073.9,2073.3,4.93207715]
[1772621239778,3.81201189,2073.9,2073.3,3.70107715]
[1772621239976,3.81201189,2073.9,2073.4,1.232]
[1772621242292,3.81201189,2073.9,2073.4,2.43774457]
[1772621242706,2.52423151,2073.8,2073.3,2.49532506]
[1772621242881,2.52423151,2073.8,2073.2,1.233]
[1772621243195,2.52423151,2073.8,2073.1,3.81]
[1772621243390,2.52423151,2073.8,2073.2,1.233]
[1772621243904,2.52423151,2073.6,2072.9,0.001]
[1772621244307,2.52423151,2073.4,2072.6,0.001]
[1772621244514,2.52423151,2073.2,2072.6,0.001]
[1772621244681,2.52423151,2073.2,2072.5,0.001]
[1772621244873,2.52423151,2073.0,2072.5,0.001]
[1772621246311,1.20603984,2072.9,2072.5,0.001]
[1772621246627,3.73027135,2072.9,2072.5,0.001]
[1772621246975,2.52423151,2073.3,2072.5,2.4777628]
[1772621247269,3.73003867,2073.3,2073.1,0.001]
[1772621249072,2.52423151,2073.3,2073.1,0.001]
[1772621249273,3.73003951,2073.3,2073.1,0.001]
[1772621249506,2.52423151,2073.2,2072.9,0.001]
[1772621251212,1.20592349,2073.1,2072.9,0.001]
[1772621251385,3.730155,2073.1,2072.9,0.001]
[1772621251726,2.52423151,2073.0,2072.5,0.001]
[1772621253216,2.52423151,2072.8,2072.5,0.001]
[1772621253519,3.73027135,2072.9,2072.5,0.001]
[1772621254014,2.52423151,2072.8,2072.4,0.001]
[1772621254213,2.52423151,2072.6,2071.8,2.4767628]
[1772621254986,2.52423151,2072.6,2071.7,2.43572872]
[1772621255212,3.73050412,2072.5,2071.7,4.91249152]
[1772621255418,3.73050412,2072.5,2071.8,2.4767628]
[1772621255717,3.73050412,2072.5,2071.8,3.7027628]
[1772621256288,3.73050412,2072.5,2071.8,2.4767628]
[1772621256497,3.73050412,2072.5,2071.8,3.7037628]
[1772621256701,2.52423151,2072.4,2071.8,3.7037628]
[1772621256987,4.82509047,2072.6,2071.9,2.4767628]
[1772621256988,3.73047427,2072.6,2071.9,2.4767628]
[1772621257298,1.20624276,2072.6,2071.9,2.4767628]
[1772621257704,4.82472747,2072.7,2072.0,3.6833265]
[1772621257890,7.34895898,2072.7,2072.0,3.6833265]
[1772621258526,2.52423151,2072.6,2071.7,3.68346338]
[1772621258830,2.52423151,2072.6,2071.7,4.91346338]
[1772621259190,2.52423151,2072.6,2071.7,2.4767628]
[1772621259410,2.52423151,2072.6,2071.7,3.7077628]
[1772621259716,2.52423151,2072.4,2071.7,2.4767628]
[1772621260014,2.52423151,2072.4,2071.7,4.91450098]
[1772621260412,2.52423151,2072.4,2071.7,2.43773818]
[1772621260813,2.52423151,2072.4,2071.6,0.001]
[1772621261020,2.52423151,2072.4,2071.6,4.91655487]
[1772621261216,2.52423151,2072.4,2071.6,3.68455487]
[1772621261423,2.52423151,2072.4,2071.6,4.91655487]
[1772621261716,2.52423151,2072.4,2072.0,0.001]
[1772621261914,3.73062054,2072.3,2072.0,0.001]
[1772621262090,2.52423151,2072.2,2072.0,0.001]
[1772621263198,2.52423151,2072.2,2071.8,0.001]
[1772621263409,2.52423151,2072.2,2071.4,3.68463767]
[1772621263629,0.002,2072.5,2071.5,2.4767628]
[1772621263795,1.20828996,2072.5,2071.6,1.20679667]
[1772621263998,1.20828996,2072.5,2071.7,2.4767628]
[1772621264311,0.002,2072.5,2071.9,2.4767628]
[1772621265923,0.002,2072.5,2072.1,2.4767628]
[1772621266221,0.002,2072.5,2072.0,1.227]
[1772621266597,0.002,2072.5,2071.9,4.91133835]
[1772621266795,2.52623151,2072.5,2071.9,4.91133835]
[1772621267322,2.52623151,2072.5,2071.9,3.68333835]
[1772621268332,1.20633082,2072.4,2071.9,3.68333835]
[1772621268709,1.20633082,2072.4,2071.9,4.91333835]
[1772621270806,1.20633082,2072.4,2071.9,4.91533835]
[1772621271928,2.52420345,2072.3,2071.6,3.7415351]
[1772621272597,2.52420345,2072.3,2071.6,2.53474353]
[1772621273409,3.7306507,2072.2,2071.6,2.53474353]
[1772621273805,1.20644725,2072.2,2071.6,3.76974353]
[1772621273999,2.52420345,2072.1,2071.6,4.97653499]
[1772621274533,3.7306391,2072.3,2071.7,2.53474353]
[1772621275398,2.52420345,2072.2,2071.7,3.77174353]
[1772621275601,2.52420345,2072.2,2071.7,2.53574353]
[1772621275910,2.52620345,2072.2,2071.7,2.53574353]
[1772621276106,2.52620345,2072.2,2071.7,0.001]
[1772621276821,2.86196467,2072.1,2071.5,0.001]
[1772621277126,2.52420345,2072.0,2071.5,0.001]
[1772621277509,3.73082539,2071.9,2071.5,0.001]
[1772621278406,2.52420345,2071.8,2071.3,0.001]
[1772621278605,2.52420345,2071.8,2071.2,0.001]
[1772621278921,2.52420345,2071.6,2071.1,0.33736824]
[1772621279806,3.73105838,2071.5,2071.1,0.33736824]
[1772621280124,1.20685493,2071.5,2071.1,0.33736824]
[1772621280326,3.73105838,2071.5,2071.1,0.33736824]
[1772621280526,3.73105838,2071.5,2070.7,4.98103914]
[1772621280527,2.52420345,2071.4,2070.7,4.98103914]
[1772621280832,2.52420345,2071.4,2070.7,3.74203914]
[1772621281032,2.52420345,2071.4,2070.7,4.98103914]
[1772621281430,2.52420345,2071.4,2070.7,3.74203914]
[1772621281729,1.20685493,2071.5,2070.8,2.53474353]
[1772621282103,7.35162319,2071.6,2070.9,2.53474353]
[1772621282729,2.52420345,2071.5,2070.9,2.53474353]
[1772621283827,2.52420345,2071.5,2070.9,3.77474353]
[1772621284038,4.82741974,2071.6,2069.7,3.81]
[1772621284039,2.52420345,2071.3,2069.7,3.81]
[1772621284233,6.89663561,2070.6,2069.5,1e-08]
[1772621284560,0.68712591,2070.7,2069.6,2.53474353]
[1772621284561,2.52420345,2070.7,2069.6,2.53474353]
[1772621284827,2.52420345,2071.0,2069.6,2.53474353]
[1772621285404,2.52420345,2071.3,2069.8,2.53474353]
[1772621285731,2.52420345,2071.3,2070.2,2.53474353]
[1772621286104,3.7312291,2071.3,2070.4,1.20749613]
[1772621286433,2.52420345,2071.2,2070.4,1.20749613]
[1772621286935,2.98146995,2071.4,2070.5,2.53474353]
[1772621287440,1.77454194,2071.4,2070.5,2.53474353]
[1772621288134,1.77454194,2071.4,2070.4,1.20749613]
[1772621288135,2.52420345,2071.2,2070.4,1.20749613]
[1772621288337,1.20700223,2071.3,2070.4,3.74223966]
[1772621288638,0.002,2070.5,2070.4,3.74223966]
[1772621288844,1.20700223,2071.3,2070.4,3.74223966]
[1772621289136,2.52420345,2071.2,2070.4,4.97223966]
[1772621289947,0.002,2070.7,2070.4,4.97223966]
[1772621290258,0.002,2070.7,2070.4,2.43849613]
[1772621290560,3.73126865,2071.2,2070.4,2.43849613]
[1772621290561,0.002,2071.0,2070.4,2.43849613]
[1772621291052,0.002,2071.0,2070.4,1.20749613]
[1772621291353,2.52420345,2070.9,2069.8,1.20784616]
[1772621291648,2.52420345,2070.9,2069.7,0.001]
[1772621291812,2.52420345,2070.7,2069.7,0.001]
[1772621292013,2.52420345,2070.5,2069.7,0.001]
[1772621292236,2.52420345,2070.3,2069.7,0.001]
[1772621292420,1.20747867,2070.5,2069.7,0.001]
[1772621292622,3.73162376,2070.6,2069.7,0.001]
[1772621293023,1.20720459,2070.9,2069.8,2.53474353]
[1772621293248,2.52420345,2070.8,2069.7,0.001]
[1772621294319,1.20732119,2070.7,2069.7,0.001]
[1772621294522,2.52420345,2070.6,2069.7,0.001]
[1772621296243,2.52420345,2070.4,2069.7,0.001]
[1772621297342,2.52420345,2070.4,2069.5,0.00100001]
[1772621297737,1.20743781,2070.5,2069.2,0.97611897]
[1772621297738,2.52420345,2070.2,2069.2,0.97611897]
[1772621297952,2.52420345,2070.0,2069.2,0.001]
[1772621298121,2.52420345,2070.0,2069.2,1.20918581]
[1772621298519,1.20778781,2069.9,2069.2,0.001]
[1772621299047,2.55777671,2069.8,2069.2,0.001]
[1772621300122,1.20774448,2070.0,2069.2,2.61900597]
[1772621300625,3.76545058,2070.1,2069.3,1.20813801]
[1772621300849,2.55777671,2070.0,2069.3,1.20813801]
[1772621301057,2.55777671,2070.2,2069.3,1.20813801]
[1772621301622,2.55777671,2070.2,2069.2,0.001]
[1772621301821,2.55777671,2070.2,2069.2,1.20918824]
[1772621302147,2.55777671,2070.2,2069.4,0.001]
[1772621302346,0.002,2069.6,2069.4,0.001]
[1772621304755,1.20996289,2069.6,2069.4,0.001]
[1772621304941,0.002,2069.6,2069.4,0.001]
[1772621305344,0.002,2069.6,2069.2,0.001]
[1772621305345,2.49691934,2069.6,2069.2,0.001]
[1772621306334,0.002,2069.8,2069.2,0.001]
[1772621306523,0.002,2069.8,2069.2,2.40502703]
[1772621306858,0.002,2069.8,2069.3,1.20813801]
[1772621307156,0.002,2069.8,2069.2,1.20919327]
[1772621307326,2.49691934,2069.8,2069.2,1.20919327]
[1772621307532,0.002,2069.8,2069.2,3.6132203]
[1772621308255,0.31995865,2070.3,2069.3,2.40402703]
[1772621308557,2.49491934,2070.2,2069.3,2.40402703]
[1772621308754,2.49491934,2070.2,2069.4,1.20807963]
[1772621308971,0.31995865,2070.3,2069.5,2.40402703]
[1772621310044,0.31995865,2070.3,2069.6,3.64302703]
[1772621310440,1.52752329,2070.3,2069.6,1.24]
[1772621310734,2.49491934,2070.0,2069.3,1.20810204]
[1772621312763,2.49491934,2070.0,2069.2,4.83355207]
[1772621312955,3.70265398,2070.0,2069.2,4.83355207]
[1772621313475,3.70265398,2070.0,2069.2,6.07455207]
[1772621314739,2.49491934,2070.0,2069.2,8.4785791]
[1772621315055,4.02247839,2070.3,2069.3,2.40402703]
[1772621315659,0.31995865,2070.3,2069.3,2.40402703]
[1772621315852,1.52751495,2070.3,2069.3,2.40402703]
[1772621316054,0.31995865,2070.3,2069.3,2.40402703]
[1772621316240,0.31995865,2070.3,2069.5,2.40402703]
[1772621316864,2.49491934,2070.2,2069.5,1.20797967]
[1772621317240,0.002,2069.8,2069.5,1.20797967]
[1772621318770,0.002,2070.0,2069.5,3.6120067]
[1772621318962,0.002,2070.0,2069.5,1.20797967]
[1772621319265,0.002,2070.0,2069.6,1.244]
[1772621320053,0.002,2070.0,2069.5,3.6120067]
[1772621320258,2.49491934,2069.9,2069.2,0.001]
[1772621320545,2.49491934,2069.9,2069.2,1.20919511]
[1772621320766,0.002,2070.0,2069.2,4.85822214]
[1772621321375,0.002,2070.0,2069.3,1.245]
[1772621321846,2.49491934,2069.9,2069.2,0.001]
[1772621322238,2.49491934,2069.7,2069.2,0.001]
[1772621322867,2.49491934,2069.5,2069.2,0.001]
[1772621324596,2.49491934,2069.5,2069.1,0.001]
[1772621324878,1.20807963,2069.4,2069.1,0.001]
[1772621325571,3.70299897,2069.4,2069.0,0.67145743]
[1772621325775,2.49491934,2069.2,2068.3,1.20869053]
[1772621326071,2.49491934,2069.2,2068.2,2.45674253]
[1772621326243,2.86167482,2069.1,2068.0,1.248]
[1772621326746,5.35659416,2069.0,2068.0,1.248]
[1772621326962,2.86167482,2068.9,2068.0,1.248]
[1772621327167,1.20843,2068.8,2068.1,1.20883903]
[1772621327706,2.49491934,2068.7,2067.2,2.40402703]
[1772621327842,2.49491934,2068.4,2067.4,1.20920789]
[1772621328043,2.49491934,2068.2,2067.4,1.20920789]
[1772621328369,2.32255903,2068.5,2067.5,3.59756597]
[1772621328553,2.32255903,2068.5,2067.5,2.35256597]
[1772621328874,2.32255903,2068.5,2067.4,1.20920789]
[1772621329177,2.32255903,2068.3,2067.2,2.35256597]
[1772621329471,2.32255903,2068.3,2067.3,2.35256597]
[1772621329686,2.32255903,2068.3,2067.3,3.59856597]
[1772621330190,2.32255903,2068.3,2067.3,2.35256597]
[1772621331077,2.32255903,2068.3,2067.5,0.001]
[1772621331466,2.32255903,2068.1,2067.5,0.001]
[1772621331692,2.32255903,2068.1,2066.7,1.2096579]
[1772621331958,2.32255903,2068.1,2067.0,0.001]
[1772621332394,2.32255903,2068.1,2067.0,2.35356597]
[1772621333162,2.32255903,2068.1,2067.0,0.001]
[1772621333360,2.32255903,2068.1,2067.1,2.35256597]
[1772621333765,1.20889748,2068.0,2067.2,1.20936532]
[1772621334125,1.20889748,2068.0,2067.2,2.35256597]
[1772621335888,2.32255903,2067.9,2067.0,3.5630234]
[1772621336196,4.83558994,2068.1,2067.1,2.35256597]
[1772621336409,1.20883903,2068.1,2067.1,2.35256597]
[1772621337827,3.53139806,2068.1,2067.1,2.35256597]
[1772621338134,3.53139806,2068.1,2067.2,1.20936532]
[1772621338426,3.53139806,2068.1,2067.1,3.56195173]
[1772621338427,2.32255903,2068.0,2067.1,3.56195173]
[1772621338622,2.32255903,2068.0,2067.0,1.21044798]
[1772621338824,2.32255903,2068.0,2067.1,2.35256597]
[1772621339025,2.32255903,2068.0,2067.0,1.21044798]
[1772621339930,1.20895594,2067.9,2067.0,3.56301395]
[1772621340520,2.32255903,2067.8,2067.0,0.001]
[1772621340719,2.32255903,2067.8,2067.0,1.21046637]
[1772621341015,2.32255903,2067.8,2067.0,1.21045854]
[1772621341418,1.20895594,2067.9,2067.1,2.35256597]
[1772621342125,4.83497123,2068.3,2067.3,2.35256597]
[1772621342326,1.20872213,2068.3,2067.3,2.35256597]
[1772621342631,1.20870646,2068.4,2067.3,2.35256597]
[1772621342934,2.32255903,2068.3,2067.3,2.35256597]
[1772621343099,2.32255903,2068.3,2067.3,3.60156597]
[1772621343306,2.32255903,2068.3,2067.3,3.55156597]
[1772621343894,2.32255903,2068.3,2067.3,2.30256597]
[1772621344094,2.32255903,2068.1,2067.3,1.20928828]
[1772621344819,1.20878058,2068.2,2067.3,3.56185425]
[1772621345018,3.53133961,2068.2,2067.3,3.56186536]
[1772621345325,2.32255903,2068.1,2067.2,1.21036355]
[1772621345527,2.32255903,2068.1,2067.2,1.21035879]
[1772621345832,2.32255903,2068.1,2067.2,3.56292476]
[1772621346138,4.83512232,2068.3,2067.2,3.56292476]
[1772621346139,4.83512232,2068.3,2067.4,1.20924833]
[1772621346337,7.15768135,2068.3,2067.4,1.20924833]
[1772621346649,7.15768135,2068.3,2067.3,3.56186216]
[1772621347627,2.32255903,2068.2,2067.3,3.56186216]
[1772621348456,1.20883903,2068.1,2067.3,3.56186216]
[1772621349852,2.32255903,2068.0,2067.3,1.20929619]
[1772621350159,2.32255903,2068.0,2067.3,3.56186216]
[1772621350621,1.20895594,2067.9,2067.3,3.56186216]
[1772621350822,2.32255903,2068.6,2067.3,2.35256597]
[1772621351058,2.32255903,2068.4,2067.3,2.35256597]
[1772621351225,2.32255903,2068.4,2067.3,3.60456597]
[1772621351544,2.32255903,2068.4,2067.4,2.35256597]
[1772621352759,1.20872213,2068.3,2067.5,1.20918984]
[1772621353627,3.53128116,2068.3,2067.5,1.20918984]
[1772621354056,3.53128116,2068.3,2067.5,3.56175581]
[1772621354252,3.53128116,2068.3,2067.5,2.35256597]
[1772621354854,2.32255903,2068.2,2067.5,3.56175079]
[1772621355655,2.32255903,2068.2,2067.5,3.56175329]
[1772621355856,2.32255903,2068.2,2067.5,1.20918732]
[1772621356058,2.32255903,2068.5,2067.6,2.35256597]
[1772621356272,2.8599155,2068.4,2067.6,2.35256597]
[1772621356564,4.83488855,2068.6,2067.6,2.35256597]
[1772621356565,2.32255903,2068.5,2067.6,2.35256597]
[1772621356863,2.32255903,2068.5,2067.3,1.20930682]
[1772621357048,2.32255903,2068.3,2067.2,3.56289113]
[1772621357251,2.32255903,2068.1,2067.2,0.001]
[1772621357450,2.32255903,2067.9,2067.2,0.001]
[1772621357766,2.86366502,2067.8,2067.2,0.001]
[1772621358065,2.86366502,2067.8,2067.5,0.001]
[1772621358832,1.20907288,2067.7,2067.5,0.001]
[1772621359632,3.63722205,2067.7,2067.2,0.001]
[1772621359842,2.86478772,2067.6,2066.8,2.2306676]
[1772621360063,1.20907288,2067.7,2066.8,2.2306676]
[1772621360269,2.86437898,2067.6,2066.8,2.2306676]
[1772621360573,3.63722205,2067.7,2066.9,1.254]
[1772621360771,5.29275041,2067.6,2066.8,2.2306676]
[1772621360971,1.20924833,2067.4,2066.8,3.44023554]
[1772621361172,3.63716358,2067.8,2066.9,2.2306676]
[1772621361375,2.86404822,2067.7,2066.9,2.2306676]
[1772621361854,2.86404822,2067.7,2066.9,3.4846676]
[1772621363000,2.86404822,2067.7,2067.0,3.64881739]
[1772621363152,2.86404822,2067.7,2067.1,2.43933505]
[1772621363501,0.002,2068.0,2067.1,2.43933505]
[1772621363674,0.002,2068.2,2067.1,2.43933505]
[1772621364486,0.002,2068.2,2067.3,2.43933505]
[1772621364976,0.002,2068.2,2067.4,1.20924833]
[1772621365175,0.002,2068.2,2067.5,2.43933505]
[1772621365379,0.002,2068.2,2067.5,3.69433505]
[1772621366179,0.002,2068.2,2067.6,2.43933505]
[1772621366376,0.002,2068.2,2067.4,1.20924833]
[1772621366570,0.002,2068.2,2067.4,2.46424833]
[1772621366750,0.002,2068.2,2067.4,4.90358338]
[1772621366946,2.28355026,2068.2,2067.4,4.90458338]
[1772621367161,3.49237583,2068.2,2067.4,4.90458338]
[1772621367368,0.002,2068.2,2067.5,2.43933505]
[1772621367993,1.21078513,2068.2,2067.5,2.43933505]
[1772621368499,2.28155026,2068.0,2067.0,1.20948234]
[1772621368687,2.28155026,2067.8,2067.0,1.20948234]
[1772621369184,6.35538782,2067.7,2066.9,2.43933505]
[1772621369363,6.35538782,2067.7,2066.8,1.256]
[1772621369364,2.28155026,2067.6,2066.8,2.46556698]
[1772621369564,1.20905955,2067.8,2066.9,2.43933505]
[1772621370298,3.49054886,2067.9,2066.9,2.43933505]
[1772621370506,4.83541461,2068.1,2066.9,2.43933505]
[1772621370674,2.86300398,2068.0,2066.9,2.43933505]
[1772621371298,1.20895594,2067.9,2067.1,2.43933505]
[1772621371602,2.28155026,2067.8,2067.2,1.257]
[1772621372201,2.28155026,2067.8,2067.1,1.257]
[1772621372576,2.28155026,2067.8,2067.1,1.258]
[1772621372774,2.28355026,2067.8,2067.1,1.258]
[1772621372978,0.002,2068.2,2067.3,2.43933505]
[1772621373171,0.002,2068.2,2067.5,2.43933505]
[1772621373474,0.002,2068.0,2067.5,2.43933505]
[1772621374399,0.002,2068.0,2067.6,1.258]
[1772621375183,0.002,2068.0,2067.7,1.20907288]
[1772621375784,0.002,2068.0,2067.7,2.46707288]
[1772621375979,2.28155026,2068.6,2067.7,2.46707288]
[1772621376289,2.28155026,2068.6,2067.8,2.43933505]
[1772621377586,1.20860526,2068.5,2067.9,1.20895594]
[1772621377901,3.49012902,2068.6,2067.9,1.20895594]
[1772621378092,1.20853139,2068.7,2067.9,3.64829099]
[1772621378409,3.49008165,2068.7,2067.9,4.90729099]
[1772621379199,3.49008165,2068.7,2068.0,2.43933505]
[1772621379516,3.49008165,2068.7,2068.1,1.20883903]
[1772621380011,3.49008165,2068.7,2068.0,4.90819105]
[1772621380217,3.49004594,2068.7,2068.0,4.90819105]
[1772621380385,0.002,2068.8,2068.1,2.43933505]
[1772621380709,0.002,2069.0,2068.3,2.43933505]
[1772621381212,0.002,2069.0,2068.4,1.26]
[1772621381616,0.002,2069.0,2068.5,1.20860526]
[1772621381813,0.002,2069.0,2068.3,1.26]
[1772621381814,2.28355026,2069.0,2068.3,1.26]
[1772621382125,2.28355026,2069.0,2068.4,2.43933505]
[1772621382126,0.002,2069.0,2068.4,2.43933505]
[1772621382551,1.20806681,2069.5,2068.4,2.43933505]
[1772621382842,2.28155026,2069.6,2068.4,2.43933505]
[1772621383015,3.48952038,2069.6,2068.4,2.43933505]
[1772621383211,3.48952085,2069.6,2068.4,2.43933505]
[1772621383412,2.28155026,2069.6,2068.4,2.43933505]
[1772621383607,2.28155026,2069.6,2068.6,2.43933505]
[1772621383915,3.49143469,2069.8,2068.6,2.43933505]
[1772621384639,2.28355026,2069.8,2068.6,2.43933505]
[1772621384834,1.20986458,2069.8,2068.6,2.43933505]
[1772621385042,0.002,2069.8,2068.6,2.43933505]
[1772621385241,1.2098535,2069.8,2068.6,2.43933505]
[1772621385439,3.49140376,2069.8,2068.6,2.43933505]
[1772621385942,0.002,2069.8,2068.8,2.43933505]
[1772621386257,2.28155026,2069.7,2068.4,2.43933505]
[1772621386417,2.28155026,2069.7,2068.4,2.4716521]